fUSD/lending_fUSD_20260217
["ID","MTS","AMOUNT","RATE_DAILY","PERIOD"]
[405849433,1771360242245,-500.0,9.972e-05,2]
[405849434,1771360242255,-500.0,9.972e-05,2]
[405849435,1771360242264,-500.0,9.972e-05,2]
[405849436,1771360242274,-500.0,9.972e-05,2]
[405849437,1771360242283,-898.32890406,0.0001,2]
[405849438,1771360242293,-500.0,0.0001,2]
[405849439,1771360242302,-680.18917296,0.0001,2]
[405849440,1771360242312,-680.18917296,0.0001,2]
[405849441,1771360242322,-680.18917296,0.0001,2]
[405849442,1771360242334,-235.80877265,0.0001,2]
[405849443,1771360242344,-1213.35576391,0.0001,2]
[405849444,1771360242353,-500.0,0.0001,2]
[405849445,1771360242363,-200.0,0.0001,2]
[405849446,1771360242375,-164.43370107,0.0001,2]
[405849447,1771360242385,-151.0,0.0001,2]
[405849448,1771360242395,-151.0,0.0001,2]
[405849449,1771360242406,-151.0,0.0001,2]
[405849450,1771360242415,-151.0,0.0001,2]
[405849451,1771360242425,-151.0,0.0001,2]
[405849452,1771360242434,-151.0,0.0001,2]
[405849453,1771360242444,-151.0,0.0001,2]
[405849454,1771360242453,-500.0,0.0001,2]
[405849455,1771360242463,-500.0,0.0001,2]
[405849456,1771360242471,-500.0,0.0001,2]
[405849457,1771360242481,-500.0,0.0001,2]
[405849458,1771360242490,-500.0,0.0001,2]
[405849459,1771360242501,-500.0,0.0001,2]
[405849460,1771360242511,-500.0,0.0001,2]
[405849461,1771360242520,-500.0,0.0001,2]
[405849462,1771360242529,-500.0,0.0001,2]
[405849463,1771360242539,-500.0,0.0001,2]
[405849464,1771360242548,-500.0,0.0001,2]
[405849465,1771360242558,-500.0,0.0001,2]
[405849466,1771360242567,-500.0,0.0001,2]
[405849467,1771360242576,-500.0,0.0001,2]
[405849468,1771360242586,-500.0,0.0001,2]
[405849469,1771360242595,-500.0,0.0001,2]
[405849470,1771360242606,-500.0,0.0001,2]
[405849471,1771360242616,-500.0,0.0001,2]
[405849472,1771360242625,-500.0,0.0001,2]
[405849473,1771360242635,-500.0,0.0001,2]
[405849474,1771360242644,-500.0,0.0001,2]
[405849476,1771360242653,-500.0,0.0001,2]
[405849478,1771360242663,-151.0,0.0001,2]
[405849479,1771360242672,-151.0,0.0001,2]
[405849480,1771360242682,-200.0,0.0001,2]
[405849481,1771360242692,-151.0,0.0001,2]
[405849482,1771360242704,-151.0,0.0001,2]
[405849483,1771360242714,-151.0,0.0001,2]
[405849484,1771360242725,-151.0,0.0001,2]
[405849485,1771360242735,-151.0,0.0001,2]
[405849487,1771360242746,-151.0,0.0001,2]
[405849488,1771360242756,-151.0,0.0001,2]
[405849489,1771360242766,-151.0,0.0001,2]
[405849490,1771360242775,-151.0,0.0001,2]
[405849491,1771360242785,-151.0,0.0001,2]
[405849492,1771360242794,-151.0,0.0001,2]
[405849493,1771360242803,-151.0,0.0001,2]
[405849494,1771360242812,-151.0,0.0001,2]
[405849496,1771360242821,-151.0,0.0001,2]
[405849497,1771360242831,-151.0,0.0001,2]
[405849498,1771360242840,-151.0,0.0001,2]
[405849499,1771360242850,-151.0,0.0001,2]
[405849500,1771360242859,-151.0,0.0001,2]
[405849501,1771360242869,-151.0,0.0001,2]
[405849503,1771360242879,-151.0,0.0001,2]
[405849504,1771360242889,-151.0,0.0001,2]
[405849505,1771360242898,-151.0,0.0001,2]
[405849506,1771360242908,-151.0,0.0001,2]
[405849507,1771360242918,-151.0,0.0001,2]
[405849508,1771360242931,-151.0,0.0001,2]
[405849509,1771360242940,-151.0,0.0001,2]
[405849510,1771360242949,-151.0,0.0001,2]
[405849511,1771360242959,-151.0,0.0001,2]
[405849512,1771360242968,-151.0,0.0001,2]
[405849513,1771360242977,-175.22048755,0.0001,2]
[405849514,1771360242987,-337.0,0.0001,2]
[405849515,1771360242996,-337.0,0.0001,2]
[405849516,1771360243005,-337.85061866,0.0001,2]
[405849517,1771360243014,-1636.71758622,0.0001,2]
[405849518,1771360243024,-1636.71758622,0.0001,2]
[405849519,1771360243033,-150.0,0.00010026,2]
[405849520,1771360243042,-500.0,0.00010026,2]
[405849521,1771360243051,-500.0,0.00010026,2]
[405849522,1771360243060,-150.0,0.00010026,2]
[405849523,1771360243069,-150.0,0.00010026,2]
[405849524,1771360243079,-150.0,0.00010026,2]
[405849525,1771360243088,-150.0,0.00010026,2]
[405849526,1771360243098,-500.0,0.00010026,2]
[405849527,1771360243107,-500.0,0.00010026,2]
[405849528,1771360243117,-500.0,0.00010026,2]
[405849529,1771360243126,-500.0,0.00010026,2]
[405849530,1771360243138,-500.0,0.00010026,2]
[405849531,1771360243150,-500.0,0.00010026,2]
[405849532,1771360243161,-500.0,0.00010026,2]
[405849533,1771360243171,-500.0,0.00010026,2]
[405849534,1771360243182,-596.0,0.00010026,2]
[405849535,1771360243193,-500.0,0.00010026,2]
[405849536,1771360243203,-178.36591542,0.00010026,2]
[405849537,1771360243215,-500.0,0.00010026,2]
[405849538,1771360243226,-510.76125773,0.00010026,2]
[405849539,1771360243237,-500.0,0.00010026,2]
[405849540,1771360243247,-500.0,0.00010026,2]
[405849541,1771360243258,-500.0,0.00010026,2]
[405849542,1771360243268,-500.0,0.00010026,2]
[405849543,1771360243277,-500.0,0.00010026,2]
[405849544,1771360243287,-500.0,0.00010026,2]
[405849545,1771360243299,-500.0,0.00010026,2]
[405849546,1771360243308,-1009.20002581,0.00010046,2]
[405849547,1771360243318,-150.0,0.00010081,2]
[405849548,1771360243332,-500.0,0.00010081,2]
[405849549,1771360243341,-500.0,0.00010081,2]
[405849550,1771360243350,-244.28993987,0.00010081,2]
[405849551,1771360243359,-150.0,0.00010081,2]
[405849552,1771360243370,-150.0,0.00010081,2]
[405849553,1771360243379,-150.0,0.00010081,2]
[405849554,1771360243388,-500.0,0.00010081,2]
[405849555,1771360243400,-329.95129651,0.00010081,2]
[405849556,1771360243410,-500.0,0.00010081,2]
[405849557,1771360243419,-500.0,0.00010081,2]
[405849558,1771360243430,-500.0,0.00010081,2]
[405849559,1771360243439,-500.0,0.00010081,2]
[405849560,1771360243449,-500.0,0.00010081,2]
[405849561,1771360243458,-500.0,0.00010081,2]
[405849562,1771360243468,-596.0,0.00010081,2]
[405849563,1771360243478,-500.0,0.00010081,2]
[405849564,1771360243488,-500.0,0.00010081,2]
[405849565,1771360243498,-500.0,0.00010081,2]
[405849566,1771360243507,-500.0,0.00010081,2]
[405849567,1771360243516,-500.0,0.00010081,2]
[405849568,1771360243527,-500.0,0.00010081,2]
[405849569,1771360243536,-500.0,0.00010081,2]
[405849570,1771360243546,-500.0,0.00010081,2]
[405849571,1771360243557,-500.0,0.00010081,2]
[405849572,1771360243567,-150.0,0.00010136,2]
[405849573,1771360243576,-152.12850518,0.00010136,2]
[405849574,1771360243586,-500.0,0.00010136,2]
[405849575,1771360243595,-150.0,0.00010136,2]
[405849576,1771360243605,-200.18645604,0.00010136,2]
[405849577,1771360243614,-200.36674187,0.00010136,2]
[405849578,1771360243623,-500.0,0.00010136,2]
[405849579,1771360243633,-500.0,0.00010136,2]
[405849580,1771360243642,-500.0,0.00010136,2]
[405849581,1771360243651,-500.0,0.00010136,2]
[405849582,1771360243661,-500.0,0.00010136,2]
[405849583,1771360243672,-500.0,0.00010136,2]
[405849584,1771360243682,-500.0,0.00010136,2]
[405849585,1771360243694,-596.0,0.00010136,2]
[405849586,1771360243704,-500.33776257,0.00010136,2]
[405849587,1771360243714,-500.0,0.00010136,2]
[405849588,1771360243724,-500.0,0.00010136,2]
[405849589,1771360243734,-500.0,0.00010136,2]
[405849590,1771360243744,-500.0,0.00010136,2]
[405849591,1771360243754,-500.0,0.00010136,2]
[405849592,1771360243765,-500.0,0.00010136,2]
[405849593,1771360243775,-500.0,0.00010136,2]
[405849594,1771360243787,-500.0,0.00010136,2]
[405849595,1771360243796,-500.0,0.00010137,2]
[405849596,1771360243807,-357.942275,0.00010151,2]
[405849597,1771360243818,-295.69274942,0.0001019,2]
[405849598,1771360243828,-500.0,0.0001019,2]
[405849599,1771360243838,-200.89245722,0.0001019,2]
[405849600,1771360243848,-382.17209928,0.00010191,2]
[405849601,1771360243859,-500.0,0.00010191,2]
[405849602,1771360243870,-500.0,0.00010191,2]
[405849603,1771360243880,-464.38268717,0.00010191,2]
[405849604,1771360243890,-500.0,0.00010191,2]
[405849605,1771360243900,-500.0,0.00010191,2]
[405849606,1771360243912,-500.0,0.00010191,2]
[405849607,1771360243922,-596.0,0.00010191,2]
[405849608,1771360243932,-500.0,0.00010191,2]
[405849609,1771360243942,-500.0,0.00010191,2]
[405849610,1771360243952,-475.49905426,0.00010191,2]
[405849611,1771360243963,-500.0,0.00010191,2]
[405849612,1771360243972,-500.0,0.00010191,2]
[405849613,1771360243982,-621.12228144,0.00010191,2]
[405849614,1771360243992,-500.0,0.00010191,2]
[405849615,1771360244003,-500.0,0.00010191,2]
[405849616,1771360244012,-10000.0,0.000102,2]
[405849617,1771360244022,-500.0,0.00010245,2]
[405849618,1771360244033,-500.0,0.00010246,2]
[405849619,1771360244043,-500.0,0.00010246,2]
[405849620,1771360244054,-500.0,0.00010246,2]
[405849621,1771360244065,-500.0,0.00010246,2]
[405849622,1771360244075,-500.0,0.00010246,2]
[405849623,1771360244087,-596.0,0.00010246,2]
[405849624,1771360244096,-500.0,0.00010246,2]
[405849625,1771360244106,-500.0,0.00010246,2]
[405849626,1771360244116,-500.0,0.00010246,2]
[405849627,1771360244126,-500.0,0.00010246,2]
[405849628,1771360244135,-500.0,0.00010246,2]
[405849629,1771360244144,-500.0,0.00010246,2]
[405849630,1771360244154,-150.0,0.0001027,2]
[405849631,1771360244163,-500.0,0.0001027,2]
[405849632,1771360244172,-500.0,0.0001027,2]
[405849633,1771360244182,-21155.78997856,0.00010296,2]
[405849634,1771360244191,-500.0,0.000103,2]
[405849635,1771360244200,-205.81655615,0.000103,2]
[405849636,1771360244210,-500.0,0.000103,2]
[405849637,1771360244219,-500.0,0.000103,2]
[405849638,1771360244228,-500.0,0.000103,2]
[405849639,1771360244238,-500.0,0.000103,2]
[405849640,1771360244247,-596.0,0.000103,2]
[405849641,1771360244257,-500.0,0.000103,2]
[405849642,1771360244266,-500.0,0.000103,2]
[405849643,1771360244276,-500.0,0.000103,2]
[405849644,1771360244285,-500.0,0.000103,2]
[405849645,1771360244295,-500.0,0.000103,2]
[405849646,1771360244304,-500.0,0.000103,2]
[405849647,1771360244313,-150.0,0.00010325,2]
[405849648,1771360244323,-500.0,0.00010325,2]
[405849649,1771360244337,-500.0,0.00010325,2]
[405849650,1771360244346,-630.25617345,0.00010355,2]
[405849651,1771360244355,-500.0,0.00010355,2]
[405849652,1771360244369,-500.0,0.00010355,2]
[405849653,1771360244378,-500.0,0.00010355,2]
[405849654,1771360244388,-500.0,0.00010355,2]
[405849655,1771360244397,-596.0,0.00010355,2]
[405849656,1771360244407,-500.0,0.00010355,2]
[405849657,1771360244417,-500.0,0.00010355,2]
[405849658,1771360244426,-500.0,0.00010355,2]
[405849659,1771360244436,-500.0,0.00010355,2]
[405849660,1771360244445,-500.0,0.00010355,2]
[405849661,1771360244454,-500.0,0.00010355,2]
[405849662,1771360244463,-242.84628954,0.0001038,2]
[405849663,1771360244472,-500.0,0.0001038,2]
[405849664,1771360244482,-500.0,0.0001038,2]
[405849665,1771360244491,-500.0,0.0001041,2]
[405849666,1771360244501,-500.0,0.0001041,2]
[405849667,1771360244511,-500.0,0.0001041,2]
[405849668,1771360244521,-500.0,0.0001041,2]
[405849669,1771360244531,-596.0,0.0001041,2]
[405849670,1771360244541,-500.0,0.0001041,2]
[405849671,1771360244550,-500.0,0.0001041,2]
[405849672,1771360244560,-500.0,0.0001041,2]
[405849673,1771360244570,-500.0,0.0001041,2]
[405849674,1771360244579,-500.0,0.0001041,2]
[405849675,1771360244589,-500.0,0.0001041,2]
[405849676,1771360244598,-500.0,0.00010411,2]
[405849677,1771360244608,-500.0,0.00010434,2]
[405849678,1771360244619,-500.0,0.00010434,2]
[405849679,1771360244629,-500.0,0.00010465,2]
[405849680,1771360244639,-500.0,0.00010465,2]
[405849681,1771360244648,-500.0,0.00010465,2]
[405849682,1771360244659,-361.9355564,0.00010465,2]
[405849683,1771360244671,-596.0,0.00010465,2]
[405849684,1771360244680,-512.26030593,0.00010465,2]
[405849685,1771360244690,-500.0,0.00010465,2]
[405849686,1771360244699,-500.0,0.00010465,2]
[405849687,1771360244709,-500.0,0.00010465,2]
[405849688,1771360244949,-500.0,0.00010465,2]
[405849689,1771360244959,-500.0,0.00010465,2]
[405849690,1771360244969,-500.0,0.00010489,2]
[405849691,1771360244979,-500.0,0.00010489,2]
[405849692,1771360244989,-224.65460803,0.0001052,2]
[405849693,1771360244999,-500.0,0.0001052,2]
[405849694,1771360245010,-500.0,0.0001052,2]
[405849695,1771360245020,-596.0,0.0001052,2]
[405849696,1771360245030,-500.0,0.0001052,2]
[405849697,1771360245039,-500.0,0.0001052,2]
[405849698,1771360245049,-500.0,0.0001052,2]
[405849699,1771360245059,-500.0,0.0001052,2]
[405849700,1771360245069,-500.0,0.0001052,2]
[405849701,1771360245079,-500.0,0.00010544,2]
[405849702,1771360245090,-500.0,0.00010544,2]
[405849703,1771360245100,-200.0,0.00010548,2]
[405849704,1771360245111,-500.0,0.00010548,2]
[405849705,1771360245121,-200.0,0.00010548,2]
[405849706,1771360245131,-500.0,0.00010574,2]
[405849707,1771360245141,-498.26652801,0.00010574,2]
[405849708,1771360245152,-596.0,0.00010574,2]
[405849709,1771360245161,-500.0,0.00010574,2]
[405849710,1771360245172,-500.0,0.00010574,2]
[405849711,1771360245182,-442.49812506,0.00010574,2]
[405849712,1771360245192,-500.0,0.00010574,2]
[405849713,1771360245203,-500.0,0.00010574,2]
[405849714,1771360245212,-500.0,0.00010599,2]
[405849715,1771360245222,-500.0,0.00010599,2]
[405849716,1771360245233,-611.76249723,0.00010629,2]
[405849717,1771360245242,-596.0,0.00010629,2]
[405849718,1771360245253,-500.0,0.00010629,2]
[405849719,1771360245264,-500.0,0.00010629,2]
[405849720,1771360245274,-500.0,0.00010629,2]
[405849721,1771360245285,-500.0,0.00010629,2]
[405849722,1771360245295,-500.0,0.00010654,2]
[405849723,1771360245304,-500.0,0.00010654,2]
[405849724,1771360245316,-596.0,0.00010684,2]
[405849725,1771360245327,-500.0,0.00010684,2]
[405849726,1771360245341,-500.0,0.00010684,2]
[405849727,1771360245350,-500.0,0.00010684,2]
[405849728,1771360245359,-481.0942881,0.00010684,2]
[405849729,1771360245370,-500.0,0.00010685,2]
[405849730,1771360245379,-500.0,0.00010708,2]
[405849731,1771360245389,-153.2248447,0.00010708,2]
[405849732,1771360245399,-596.0,0.00010739,2]
[405849733,1771360245408,-266.33885806,0.00010739,2]
[405849734,1771360245418,-500.0,0.00010739,2]
[405849735,1771360245428,-500.0,0.00010739,2]
[405849736,1771360245437,-500.0,0.00010763,2]
[405849737,1771360245447,-1613.0,0.00010789,2]
[405849738,1771360245456,-6453.0,0.00010789,2]
[405849739,1771360245466,-2129.0,0.00010792,2]
[405849740,1771360245475,-596.0,0.00010794,2]
[405849741,1771360245485,-500.0,0.00010794,2]
[405849742,1771360245495,-514.37004621,0.00010794,2]
[405849743,1771360245504,-214297.0,0.000108,2]
[405849744,1771360245514,-500.0,0.00010818,2]
[405849745,1771360245524,-596.0,0.00010848,2]
[405849746,1771360245534,-280.68179644,0.00010848,2]
[405849747,1771360245544,-163.51122534,0.00010873,2]
[405849748,1771360245553,-5115.82431984,0.000109,2]
[405849749,1771360245563,-5115.82431981,0.000109,2]
[405849750,1771360245573,-5115.82431981,0.000109,2]
[405849751,1771360245582,-596.0,0.00010903,2]
[405849752,1771360245592,-596.0,0.00010958,2]
[405849753,1771360245601,-16891.69,0.00010959,2]
[405849754,1771360245610,-500.0,0.00010959,2]
[405849756,1771360245621,-150.0,0.00010959,2]
[405849757,1771360245630,-150.0,0.00010959,2]
[405849758,1771360245640,-184.46,0.00010959,2]
[405849759,1771360245649,-6034.81891893,0.00011,2]
[405849760,1771360245658,-596.0,0.00011013,2]
[405849761,1771360245667,-596.0,0.00011067,2]
[405849762,1771360245677,-500.0,0.00011096,2]
[405849763,1771360245686,-200.0,0.00011096,2]
[405849764,1771360245695,-200.0,0.00011096,2]
[405849765,1771360245706,-68837.47701458,0.00011099,2]
[405849766,1771360245718,-68837.47701454,0.00011099,2]
[405849767,1771360245727,-68837.47701454,0.00011099,2]
[405849768,1771360245736,-68837.47701454,0.00011099,2]
[405849769,1771360245745,-68837.47701454,0.00011099,2]
[405849770,1771360245755,-68837.47701454,0.00011099,2]
[405849771,1771360245764,-68837.47701454,0.00011099,2]
[405849772,1771360245774,-68837.47701454,0.00011099,2]
[405849773,1771360245783,-68837.47701454,0.00011099,2]
[405849774,1771360245793,-68837.47701454,0.00011099,2]
[405849775,1771360245802,-600.2655769,0.00011122,2]
[405849776,1771360245812,-1350.0,0.00011146,7]
[405849777,1771360245821,-5530.0,0.000112,3]
[405849778,1771360245831,-13523.61,0.00011233,2]
[405849779,1771360245842,-500.0,0.00011233,2]
[405849780,1771360245852,-151.0,0.00011297,2]
[405849781,1771360245861,-5115.82431981,0.00011443,2]
[405849782,1771360245871,-5530.0,0.000115,5]
[405849783,1771360245880,-500.0,0.00011507,2]
[405849784,1771360245889,-500.0,0.00011644,2]
[405849785,1771360245899,-200.0,0.00011644,2]
[405849786,1771360245908,-218.04759767,0.00011644,2]
[405849787,1771360245917,-173.355935,0.00011653,2]
[405849788,1771360245927,-500.0,0.00011781,2]
[405849789,1771360245936,-160.0,0.00011861,2]
[405849790,1771360245946,-173.57638878,0.00011861,2]
[405849791,1771360245956,-2258.0,0.00011868,2]
[405849792,1771360245967,-9035.0,0.00011868,2]
[405849793,1771360245976,-3620.0,0.00011871,2]
[405849794,1771360245985,-600.0,0.00012015,2]
[405849795,1771360245995,-500.0,0.00012055,2]
[405849797,1771360246005,-355.76,0.00012114,2]
[405849799,1771360246014,-500.0,0.00012173,2]
[405849801,1771360246023,-500.0,0.00012173,2]
[405849803,1771360246033,-164.61380668,0.00012173,2]
[405849805,1771360246042,-500.0,0.00012173,2]
[405849806,1771360246051,-500.0,0.00012173,2]
[405849807,1771360246060,-500.0,0.00012173,2]
[405849808,1771360246070,-500.0,0.00012173,2]
[405849809,1771360246079,-500.0,0.00012173,2]
[405849810,1771360246089,-500.0,0.00012173,2]
[405849811,1771360246098,-500.0,0.00012173,2]
[405849812,1771360246107,-500.0,0.00012173,2]
[405849813,1771360246117,-500.0,0.00012173,2]
[405849814,1771360246127,-500.0,0.00012173,2]
[405849815,1771360246137,-545.77855618,0.00012173,2]
[405849816,1771360246146,-500.0,0.00012173,2]
[405849817,1771360246155,-500.0,0.00012173,2]
[405849818,1771360246165,-500.0,0.00012173,2]
[405849819,1771360246175,-500.0,0.00012173,2]
[405849820,1771360246184,-500.0,0.00012173,2]
[405849821,1771360246193,-160.1837527,0.00012173,2]
[405849822,1771360246202,-500.0,0.00012173,2]
[405849823,1771360246211,-500.0,0.00012173,2]
[405849824,1771360246221,-500.0,0.00012173,2]
[405849825,1771360246231,-500.0,0.00012173,2]
[405849826,1771360246240,-166.78412047,0.00012173,2]
[405849827,1771360246249,-500.0,0.00012173,2]
[405849828,1771360246258,-500.0,0.00012173,2]
[405849829,1771360246267,-500.0,0.00012173,2]
[405849830,1771360246276,-500.0,0.00012173,2]
[405849831,1771360246286,-500.0,0.00012173,2]
[405849832,1771360246296,-500.0,0.00012173,2]
[405849833,1771360246305,-500.46642231,0.00012173,2]
[405849834,1771360246314,-500.0,0.00012173,2]
[405849835,1771360246324,-500.0,0.00012173,2]
[405849836,1771360246338,-160.37289206,0.00012173,2]
[405849837,1771360246347,-500.0,0.00012173,2]
[405849838,1771360246356,-163.58520611,0.00012173,2]
[405849839,1771360246366,-200.0,0.00012192,2]
[405849840,1771360246377,-500.0,0.00012192,2]
[405849841,1771360246387,-215.37,0.00012247,2]
[405849842,1771360246396,-8640.54324281,0.0001225,2]
[405849843,1771360246407,-2222.86560409,0.0001225,2]
[405849844,1771360246417,-297.0400421,0.0001225,2]
[405849845,1771360246426,-500.0,0.00012329,2]
[405849846,1771360246436,-1213.35576391,0.00012342,2]
[405849847,1771360246446,-1000.0,0.00012349,2]
[405849848,1771360246456,-308.39558699,0.000125,2]
[405849849,1771360246465,-500.0,0.00012603,2]
[405849850,1771360246475,-1000.0,0.00012721,2]
[405849851,1771360246484,-1000.0,0.00012721,2]
[405849852,1771360246494,-1002.81524174,0.00012721,2]
[405849853,1771360246503,-228.57891647,0.00012721,2]
[405849854,1771360246513,-571.65229745,0.00012721,2]
[405849855,1771360246524,-1000.0,0.00012721,2]
[405849856,1771360246533,-1013.94571317,0.00012721,2]
[405849857,1771360246542,-544.40507509,0.00012721,2]
[405849858,1771360246552,-1000.0,0.00012721,2]
[405849859,1771360246562,-1000.0,0.00012721,2]
[405849860,1771360246571,-1000.0,0.00012721,2]
[405849861,1771360246581,-500.0,0.00012721,2]
[405849862,1771360246591,-509.22256369,0.00012721,2]
[405849863,1771360246600,-1000.0,0.00012721,2]
[405849864,1771360246610,-1000.0,0.00012721,2]
[405849865,1771360246621,-1000.0,0.00012721,2]
[405849866,1771360246630,-1000.0,0.00012721,2]
[405849867,1771360246639,-1000.0,0.00012721,2]
[405849868,1771360246657,-306.10762696,0.00012721,2]
[405849869,1771360246669,-1000.0,0.00012721,2]
[405849870,1771360246679,-1000.0,0.00012721,2]
[405849871,1771360246689,-615.3930462,0.00012721,2]
[405849872,1771360246699,-1000.0,0.00012721,2]
[405849873,1771360246709,-1000.0,0.00012721,2]
[405849874,1771360246719,-1000.0,0.00012721,2]
[405849875,1771360246728,-1071.24633497,0.00012721,2]
[405849876,1771360246738,-501.82748142,0.00012721,2]
[405849877,1771360246748,-1000.0,0.00012721,2]
[405849878,1771360246759,-200.0,0.0001274,2]
[405849879,1771360246769,-500.0,0.0001274,2]
[405849880,1771360246779,-271.46,0.00012877,2]
[405849881,1771360246789,-500.0,0.00012877,2]
[405849882,1771360246798,-1636.71758622,0.0001289,2]
[405849883,1771360246808,-119222.30808405,0.000129,2]
[405849884,1771360246818,-5623.26156693,0.00013,2]
[405849885,1771360246827,-5362.79805645,0.0001305,2]
[405849886,1771360246837,-3162.0,0.00013054,2]
[405849887,1771360246847,-12649.0,0.00013054,2]
[405849888,1771360246856,-5308.0,0.00013056,2]
[405849889,1771360246866,-5115.82431981,0.00013057,2]
[405849890,1771360246876,-500.0,0.00013151,2]
[405849891,1771360246886,-596.47581986,0.00013175,2]
[405849892,1771360246897,-744.95097778,0.00013268,2]
[405849893,1771360246908,-1500.0,0.00013268,2]
[405849894,1771360246919,-1500.0,0.00013268,2]
[405849895,1771360246930,-806.86059886,0.00013268,2]
[405849896,1771360246940,-616.56100589,0.00013268,2]
[405849897,1771360246951,-623.71743587,0.00013268,2]
[405849898,1771360246962,-592.40967882,0.00013268,2]
[405849899,1771360246973,-344.71223806,0.00013268,2]
[405849900,1771360246983,-1500.0,0.00013268,2]
[405849901,1771360246994,-1500.0,0.00013268,2]
[405849902,1771360247005,-1000.0,0.00013268,2]
[405849903,1771360247014,-1500.0,0.00013268,2]
[405849904,1771360247024,-1500.0,0.00013268,2]
[405849905,1771360247034,-1500.0,0.00013268,2]
[405849906,1771360247044,-1500.0,0.00013268,2]
[405849907,1771360247055,-1500.0,0.00013268,2]
[405849908,1771360247065,-932.93855102,0.00013268,2]
[405849909,1771360247075,-200.0,0.00013288,2]
[405849910,1771360247084,-500.0,0.00013288,2]
[405849911,1771360247094,-3240.0,0.00013425,2]
[405849912,1771360247105,-500.0,0.00013425,2]
[405849913,1771360247116,-1000.0,0.000135,2]
[405849914,1771360247126,-298.285229,0.00013534,2]
[405849915,1771360247136,-500.0,0.00013698,2]
[405849916,1771360247146,-500.0,0.00013698,2]
[405849917,1771360247155,-500.0,0.00013698,2]
[405849918,1771360247164,-500.0,0.00013698,2]
[405849919,1771360247173,-586.00467181,0.00013698,2]
[405849920,1771360247182,-500.0,0.00013698,2]
[405849921,1771360247192,-500.0,0.00013698,2]
[405849922,1771360247201,-500.0,0.00013698,2]
[405849923,1771360247211,-500.0,0.00013698,2]
[405849924,1771360247220,-500.0,0.00013698,2]
[405849925,1771360247229,-500.0,0.00013698,2]
[405849926,1771360247238,-500.0,0.00013698,2]
[405849927,1771360247248,-500.0,0.00013698,2]
[405849928,1771360247258,-500.0,0.00013698,2]
[405849929,1771360247267,-500.0,0.00013698,2]
[405849930,1771360247277,-500.0,0.00013698,2]
[405849931,1771360247388,-500.0,0.00013698,2]
[405849932,1771360247398,-500.0,0.00013698,2]
[405849933,1771360247409,-500.0,0.00013698,2]
[405849934,1771360247418,-2052.7,0.00013698,2]
[405849935,1771360247428,-2052.7,0.00013698,2]
[405849936,1771360247438,-2052.7,0.00013698,2]
[405849937,1771360247447,-2052.7,0.00013698,2]
[405849938,1771360247456,-2052.7,0.00013698,2]
[405849939,1771360247465,-2052.7,0.00013698,2]
[405849940,1771360247475,-2052.7,0.00013698,2]
[405849941,1771360247484,-2052.7,0.00013698,2]
[405849942,1771360247493,-2052.7,0.00013698,2]
[405849943,1771360247502,-500.0,0.00013698,2]